[Event "Titled Tuesday Blitz December 20 Late 2022"]
[White "Peatman, Carter"]
[Black "Ter-Sahakyan, Samvel"]
[WhiteFideId "2096480"]
[BlackFideId "13302531"]
[WhiteElo "2465"]
[BlackElo "2585"]
[Result "0-1"]
[Round "01"]
[TimeControl "180+1"]
[Date "2022.12.20"]
[WhiteClock "0:00:27"]
[BlackClock "0:01:46"]

1. d4 {[%clk 0:03:00]}  Nf6 {[%clk 0:02:59]} 2. Bf4 {[%clk 0:02:57]}  d5 {[%clk 0:02:57]} 3. e3 {[%clk 0:02:56]}  c5 {[%clk 0:02:56]} 4. c3 {[%clk 0:02:53]}  Nc6 {[%clk 0:02:55]} 5. Nd2 {[%clk 0:02:52]}  Bg4 {[%clk 0:02:52]} 6. Qb3 {[%clk 0:02:47]}  Qc8 {[%clk 0:02:49]} 7. Ngf3 {[%clk 0:02:37]}  e6 {[%clk 0:02:44]} 8. Ne5 {[%clk 0:02:33]}  a6 {[%clk 0:02:26]} 9. Qb6 {[%clk 0:02:18]}  Nxe5 {[%clk 0:02:13]} 10. dxe5 {[%clk 0:01:56]}  Nd7 {[%clk 0:02:08]} 11. Qb3 {[%clk 0:01:53]}  c4 {[%clk 0:02:02]} 12. Qc2 {[%clk 0:01:50]}  Bf5 {[%clk 0:02:02]} 13. e4 {[%clk 0:01:13]}  Bg6 {[%clk 0:02:02]} 14. Be2 {[%clk 0:01:06]}  Nc5 {[%clk 0:01:59]} 15. f3 {[%clk 0:01:04]}  Be7 {[%clk 0:01:55]} 16. O-O-O {[%clk 0:01:02]}  b5 {[%clk 0:01:53]} 17. h4 {[%clk 0:00:58]}  h6 {[%clk 0:01:53]} 18. h5 {[%clk 0:00:57]}  Bh7 {[%clk 0:01:53]} 19. g3 {[%clk 0:00:57]}  a5 {[%clk 0:01:50]} 20. Nf1 {[%clk 0:00:45]}  dxe4 {[%clk 0:01:46]} 21. fxe4 {[%clk 0:00:27]}  Bxe4 {[%clk 0:01:46]} 0-1


[Site "https://www.chess.com"]

[Event "Titled Tuesday Blitz December 20 Late 2022"]
[White "Pein, Jonathan"]
[Black "Kamsky, Gata"]
[WhiteFideId "417092"]
[BlackFideId "2000024"]
[WhiteElo "2225"]
[BlackElo "2666"]
[Result "0-1"]
[Round "01"]
[TimeControl "180+1"]
[Date "2022.12.20"]
[WhiteClock "0:00:15"]
[BlackClock "0:00:29"]

1. e4 {[%clk 0:02:59]}  g6 {[%clk 0:02:58]} 2. g3 {[%clk 0:02:59]}  Bg7 {[%clk 0:02:58]} 3. Bg2 {[%clk 0:03:00]}  c5 {[%clk 0:02:55]} 4. Ne2 {[%clk 0:03:00]}  Nc6 {[%clk 0:02:53]} 5. O-O {[%clk 0:03:01]}  d6 {[%clk 0:02:48]} 6. c3 {[%clk 0:03:01]}  e5 {[%clk 0:02:47]} 7. a3 {[%clk 0:03:02]}  Nge7 {[%clk 0:02:35]} 8. b4 {[%clk 0:03:01]}  O-O {[%clk 0:02:34]} 9. d3 {[%clk 0:03:02]}  b6 {[%clk 0:02:17]} 10. b5 {[%clk 0:03:01]}  Nb8 {[%clk 0:02:10]} 11. c4 {[%clk 0:02:57]}  a6 {[%clk 0:02:09]} 12. Nbc3 {[%clk 0:02:57]}  axb5 {[%clk 0:02:08]} 13. Nxb5 {[%clk 0:02:57]}  Nbc6 {[%clk 0:02:05]} 14. Be3 {[%clk 0:02:56]}  Be6 {[%clk 0:02:01]} 15. Qd2 {[%clk 0:02:56]}  Qd7 {[%clk 0:01:58]} 16. Rab1 {[%clk 0:02:56]}  Ra6 {[%clk 0:01:55]} 17. Nec3 {[%clk 0:02:52]}  Nd4 {[%clk 0:01:51]} 18. Nd5 {[%clk 0:02:44]}  Nxb5 {[%clk 0:01:41]} 19. Rxb5 {[%clk 0:02:26]}  Nxd5 {[%clk 0:01:22]} 20. exd5 {[%clk 0:02:26]}  Bf5 {[%clk 0:01:20]} 21. Rfb1 {[%clk 0:02:20]}  Qa7 {[%clk 0:01:18]} 22. Bf1 {[%clk 0:02:03]}  Bd7 {[%clk 0:01:15]} 23. R5b3 {[%clk 0:01:59]}  f5 {[%clk 0:01:08]} 24. Bh6 {[%clk 0:01:54]}  Bxh6 {[%clk 0:00:55]} 25. Qxh6 {[%clk 0:01:55]}  f4 {[%clk 0:00:43]} 26. Qg5 {[%clk 0:01:50]}  Bf5 {[%clk 0:00:31]} 27. gxf4 {[%clk 0:01:18]}  exf4 {[%clk 0:00:30]} 28. Qxf4 {[%clk 0:01:18]}  Bxd3 {[%clk 0:00:26]} 29. Qxd6 {[%clk 0:01:19]}  Bxb1 {[%clk 0:00:21]} 30. Rxb1 {[%clk 0:01:14]}  Qf7 {[%clk 0:00:18]} 31. Qg3 {[%clk 0:00:18]}  Qf4 {[%clk 0:00:18]} 32. d6 {[%clk 0:00:14]}  Qxg3+ {[%clk 0:00:17]} 33. hxg3 {[%clk 0:00:15]}  Rd8 {[%clk 0:00:18]} 34. Rd1 {[%clk 0:00:14]}  Rxa3 {[%clk 0:00:18]} 35. d7 {[%clk 0:00:10]}  Kf7 {[%clk 0:00:18]} 36. Rd6 {[%clk 0:00:09]}  Ke7 {[%clk 0:00:17]} 37. Rxb6 {[%clk 0:00:07]}  Rxd7 {[%clk 0:00:18]} 38. Bg2 {[%clk 0:00:02]}  Ra1+ {[%clk 0:00:17]} 39. Kh2 {[%clk 0:00:03]}  Ra2 {[%clk 0:00:18]} 40. Bd5 {[%clk 0:00:03]}  Rxf2+ {[%clk 0:00:17]} 41. Kg1 {[%clk 0:00:04]}  Rf6 {[%clk 0:00:17]} 42. Rb5 {[%clk 0:00:04]}  Rc7 {[%clk 0:00:17]} 43. Kg2 {[%clk 0:00:05]}  Kd6 {[%clk 0:00:18]} 44. Rb6+ {[%clk 0:00:05]}  Ke5 {[%clk 0:00:18]} 45. Rb8 {[%clk 0:00:04]}  Ra7 {[%clk 0:00:18]} 46. Re8+ {[%clk 0:00:04]}  Kd4 {[%clk 0:00:18]} 47. Re4+ {[%clk 0:00:05]}  Kc3 {[%clk 0:00:19]} 48. Re3+ {[%clk 0:00:06]}  Kb4 {[%clk 0:00:19]} 49. g4 {[%clk 0:00:06]}  Ra3 {[%clk 0:00:19]} 50. Re8 {[%clk 0:00:05]}  Rf4 {[%clk 0:00:18]} 51. Rb8+ {[%clk 0:00:04]}  Kc3 {[%clk 0:00:19]} 52. Kg3 {[%clk 0:00:05]}  g5 {[%clk 0:00:19]} 53. Re8 {[%clk 0:00:04]}  Kd4+ {[%clk 0:00:19]} 54. Kg2 {[%clk 0:00:04]}  Rxg4+ {[%clk 0:00:19]} 55. Kh2 {[%clk 0:00:05]}  Rh4+ {[%clk 0:00:20]} 56. Kg2 {[%clk 0:00:05]}  h5 {[%clk 0:00:20]} 57. Re2 {[%clk 0:00:04]}  Rf4 {[%clk 0:00:20]} 58. Rd2+ {[%clk 0:00:04]}  Ke5 {[%clk 0:00:20]} 59. Re2+ {[%clk 0:00:05]}  Kf6 {[%clk 0:00:20]} 60. Re6+ {[%clk 0:00:05]}  Kf5 {[%clk 0:00:20]} 61. Re2 {[%clk 0:00:06]}  Rd4 {[%clk 0:00:21]} 62. Be6+ {[%clk 0:00:06]}  Kf6 {[%clk 0:00:21]} 63. Bd5 {[%clk 0:00:06]}  g4 {[%clk 0:00:21]} 64. Re6+ {[%clk 0:00:06]}  Kg5 {[%clk 0:00:21]} 65. Re5+ {[%clk 0:00:06]}  Kf4 {[%clk 0:00:21]} 66. Re2 {[%clk 0:00:07]}  h4 {[%clk 0:00:21]} 67. Kh2 {[%clk 0:00:07]}  h3 {[%clk 0:00:21]} 68. Rf2+ {[%clk 0:00:07]}  Kg5 {[%clk 0:00:21]} 69. Be6 {[%clk 0:00:08]}  Kh4 {[%clk 0:00:21]} 70. Bxg4 {[%clk 0:00:08]}  Rxg4 {[%clk 0:00:21]} 71. Rd2 {[%clk 0:00:07]}  Rg2+ {[%clk 0:00:21]} 72. Rxg2 {[%clk 0:00:06]}  hxg2 {[%clk 0:00:22]} 73. Kg1 {[%clk 0:00:06]}  Kg4 {[%clk 0:00:22]} 74. Kh2 {[%clk 0:00:07]}  Kf4 {[%clk 0:00:23]} 75. Kg1 {[%clk 0:00:07]}  Ke4 {[%clk 0:00:24]} 76. Kf2 {[%clk 0:00:08]}  Kd4 {[%clk 0:00:25]} 77. Kg1 {[%clk 0:00:09]}  Kxc4 {[%clk 0:00:26]} 78. Kf2 {[%clk 0:00:10]}  Kd4 {[%clk 0:00:26]} 79. Kg1 {[%clk 0:00:11]}  c4 {[%clk 0:00:27]} 80. Kf2 {[%clk 0:00:12]}  c3 {[%clk 0:00:28]} 81. Kg1 {[%clk 0:00:13]}  c2 {[%clk 0:00:28]} 82. Kf2 {[%clk 0:00:14]}  c1=Q {[%clk 0:00:28]} 83. Kxg2 {[%clk 0:00:14]}  Qd2+ {[%clk 0:00:28]} 84. Kh1 {[%clk 0:00:15]}  Ra1# {[%clk 0:00:29]} 0-1


[Site "https://www.chess.com"]

[Event "Titled Tuesday Blitz December 20 Late 2022"]
[White "Piliczewski, Bogusz"]
[Black "Fiorito, Joaquin"]
[WhiteFideId "1104144"]
[BlackFideId "180173"]
[WhiteElo "1896"]
[BlackElo "2157"]
[Result "0-1"]
[Round "01"]
[TimeControl "180+1"]
[Date "2022.12.21"]
[WhiteClock "0:01:37"]
[BlackClock "0:02:28"]

1. d4 {[%clk 0:03:00]}  Nf6 {[%clk 0:02:59]} 2. Bf4 {[%clk 0:02:57]}  d5 {[%clk 0:02:59]} 3. e3 {[%clk 0:02:54]}  c5 {[%clk 0:02:59]} 4. c3 {[%clk 0:02:53]}  Nc6 {[%clk 0:02:59]} 5. Nd2 {[%clk 0:02:52]}  Bf5 {[%clk 0:02:59]} 6. Ngf3 {[%clk 0:02:49]}  e6 {[%clk 0:02:57]} 7. Qb3 {[%clk 0:02:47]}  Qc8 {[%clk 0:02:53]} 8. Be2 {[%clk 0:02:44]}  c4 {[%clk 0:02:53]} 9. Qa4 {[%clk 0:02:41]}  a6 {[%clk 0:02:51]} 10. Qd1 {[%clk 0:02:34]}  h6 {[%clk 0:02:51]} 11. O-O {[%clk 0:02:33]}  Be7 {[%clk 0:02:51]} 12. h3 {[%clk 0:02:33]}  O-O {[%clk 0:02:50]} 13. b3 {[%clk 0:02:33]}  b5 {[%clk 0:02:51]} 14. a4 {[%clk 0:02:30]}  b4 {[%clk 0:02:46]} 15. Qc1 {[%clk 0:02:26]}  bxc3 {[%clk 0:02:45]} 16. Qxc3 {[%clk 0:02:25]}  Bb4 {[%clk 0:02:45]} 17. Qc1 {[%clk 0:02:24]}  c3 {[%clk 0:02:45]} 18. Nb1 {[%clk 0:02:21]}  Na5 {[%clk 0:02:46]} 19. Bd1 {[%clk 0:02:16]}  c2 {[%clk 0:02:46]} 20. Bxc2 {[%clk 0:02:15]}  Bxc2 {[%clk 0:02:45]} 21. Qb2 {[%clk 0:02:06]}  Bxb1 {[%clk 0:02:42]} 22. Raxb1 {[%clk 0:02:05]}  Qb7 {[%clk 0:02:41]} 23. Rfc1 {[%clk 0:02:03]}  Rfc8 {[%clk 0:02:41]} 24. Ne5 {[%clk 0:02:00]}  Ne4 {[%clk 0:02:40]} 25. Nd3 {[%clk 0:01:56]}  Bc3 {[%clk 0:02:37]} 26. Qa3 {[%clk 0:01:51]}  Nd2 {[%clk 0:02:33]} 27. Nc5 {[%clk 0:01:50]}  Nxb1 {[%clk 0:02:30]} 28. Rxb1 {[%clk 0:01:47]}  Qb4 {[%clk 0:02:28]} 29. Qxb4 {[%clk 0:01:40]}  Bxb4 {[%clk 0:02:29]} 30. Rc1 {[%clk 0:01:38]}  Bxc5 {[%clk 0:02:27]} 31. dxc5 {[%clk 0:01:38]}  Nxb3 {[%clk 0:02:28]} 32. Rc3 {[%clk 0:01:37]}  Nxc5 {[%clk 0:02:28]} 0-1


[Site "https://www.chess.com"]

[Event "Titled Tuesday Blitz December 20 Late 2022"]
[White "Polster, Christian"]
[Black "Krishnan, Varun"]
[WhiteFideId "12965081"]
[BlackFideId "5054508"]
[WhiteElo "2195"]
[BlackElo "2589"]
[Result "0-1"]
[Round "01"]
[TimeControl "180+1"]
[Date "2022.12.21"]
[WhiteClock "0:00:12"]
[BlackClock "0:01:33"]

1. e4 {[%clk 0:02:47]}  e5 {[%clk 0:02:50]} 2. Nf3 {[%clk 0:02:46]}  Nc6 {[%clk 0:02:50]} 3. Bc4 {[%clk 0:02:33]}  Nf6 {[%clk 0:02:48]} 4. Ng5 {[%clk 0:02:26]}  d5 {[%clk 0:02:48]} 5. exd5 {[%clk 0:02:27]}  Na5 {[%clk 0:02:46]} 6. Bb5+ {[%clk 0:01:48]}  Bd7 {[%clk 0:02:41]} 7. Qe2 {[%clk 0:01:24]}  Bd6 {[%clk 0:02:27]} 8. Nc3 {[%clk 0:01:13]}  O-O {[%clk 0:02:24]} 9. Bxd7 {[%clk 0:01:07]}  Qxd7 {[%clk 0:02:23]} 10. O-O {[%clk 0:01:06]}  c6 {[%clk 0:02:18]} 11. dxc6 {[%clk 0:00:53]}  Nxc6 {[%clk 0:02:19]} 12. Nf3 {[%clk 0:00:47]}  Rfe8 {[%clk 0:02:15]} 13. d3 {[%clk 0:00:44]}  Nd4 {[%clk 0:02:12]} 14. Nxd4 {[%clk 0:00:21]}  exd4 {[%clk 0:02:13]} 15. Ne4 {[%clk 0:00:22]}  Nxe4 {[%clk 0:02:06]} 16. dxe4 {[%clk 0:00:23]}  Qc6 {[%clk 0:02:05]} 17. f3 {[%clk 0:00:18]}  Rac8 {[%clk 0:02:04]} 18. Rf2 {[%clk 0:00:18]}  Qb6 {[%clk 0:01:57]} 19. Qd3 {[%clk 0:00:18]}  Bb8 {[%clk 0:01:54]} 20. b3 {[%clk 0:00:17]}  Rc3 {[%clk 0:01:52]} 21. Qd1 {[%clk 0:00:17]}  Qd6 {[%clk 0:01:49]} 22. Bb2 {[%clk 0:00:17]}  Qxh2+ {[%clk 0:01:47]} 23. Kf1 {[%clk 0:00:17]}  Re3 {[%clk 0:01:40]} 24. Rd2 {[%clk 0:00:14]}  Bg3 {[%clk 0:01:33]} 25. Bxd4 {[%clk 0:00:12]}  Qh1# {[%clk 0:01:33]} 0-1


[Site "https://www.chess.com"]

[Event "Titled Tuesday Blitz December 20 Late 2022"]
[White "Rasulov, Vugar"]
[Black "Kaplan, Avi Harrison"]
[WhiteFideId "13402390"]
[BlackFideId "30934559"]
[WhiteElo "2509"]
[BlackElo "1983"]
[Result "1-0"]
[Round "01"]
[TimeControl "180+1"]
[Date "2022.12.21"]
[WhiteClock "0:01:37"]
[BlackClock "0:00:06"]

1. e4 {[%clk 0:03:00]}  c5 {[%clk 0:02:56]} 2. Nc3 {[%clk 0:03:00]}  a6 {[%clk 0:02:56]} 3. Nf3 {[%clk 0:03:00]}  d6 {[%clk 0:02:56]} 4. d4 {[%clk 0:03:00]}  cxd4 {[%clk 0:02:57]} 5. Nxd4 {[%clk 0:03:01]}  Nf6 {[%clk 0:02:57]} 6. Be3 {[%clk 0:03:00]}  e5 {[%clk 0:02:57]} 7. Nf3 {[%clk 0:03:00]}  Qc7 {[%clk 0:02:52]} 8. a4 {[%clk 0:02:59]}  Be7 {[%clk 0:02:52]} 9. a5 {[%clk 0:02:59]}  O-O {[%clk 0:02:51]} 10. Be2 {[%clk 0:03:00]}  h6 {[%clk 0:02:50]} 11. O-O {[%clk 0:02:59]}  Bd7 {[%clk 0:02:50]} 12. Bb6 {[%clk 0:02:51]}  Qc8 {[%clk 0:02:46]} 13. Nd5 {[%clk 0:02:47]}  Nxd5 {[%clk 0:02:46]} 14. exd5 {[%clk 0:02:48]}  f5 {[%clk 0:02:45]} 15. c4 {[%clk 0:02:47]}  f4 {[%clk 0:02:32]} 16. Bd3 {[%clk 0:02:42]}  g5 {[%clk 0:02:30]} 17. Rc1 {[%clk 0:02:37]}  g4 {[%clk 0:02:23]} 18. Nd2 {[%clk 0:02:37]}  f3 {[%clk 0:02:24]} 19. g3 {[%clk 0:02:32]}  Bf5 {[%clk 0:02:11]} 20. Qc2 {[%clk 0:02:32]}  Bxd3 {[%clk 0:02:05]} 21. Qxd3 {[%clk 0:02:33]}  Qe8 {[%clk 0:02:05]} 22. Ne4 {[%clk 0:02:26]}  Qh5 {[%clk 0:02:03]} 23. Rfe1 {[%clk 0:02:25]}  Nd7 {[%clk 0:01:57]} 24. Bc7 {[%clk 0:02:24]}  Rac8 {[%clk 0:01:02]} 25. Bxd6 {[%clk 0:02:21]}  Bxd6 {[%clk 0:01:02]} 26. Nxd6 {[%clk 0:02:22]}  Nc5 {[%clk 0:01:03]} 27. Qf1 {[%clk 0:02:17]}  Rcd8 {[%clk 0:00:59]} 28. b4 {[%clk 0:02:16]}  Nb3 {[%clk 0:00:51]} 29. Ne4 {[%clk 0:02:07]}  Kg7 {[%clk 0:00:38]} 30. h4 {[%clk 0:02:03]}  gxh3 {[%clk 0:00:36]} 31. Kh2 {[%clk 0:01:59]}  Qg4 {[%clk 0:00:27]} 32. Nc5 {[%clk 0:01:55]}  Nd4 {[%clk 0:00:22]} 33. Rxe5 {[%clk 0:01:52]}  Ne2 {[%clk 0:00:19]} 34. Re1 {[%clk 0:01:42]}  h5 {[%clk 0:00:19]} 35. Ne6+ {[%clk 0:01:41]}  Kf6 {[%clk 0:00:14]} 36. R5xe2 {[%clk 0:01:36]}  fxe2 {[%clk 0:00:14]} 37. Qxe2 {[%clk 0:01:37]}  Qxe2 {[%clk 0:00:06]} 38. Rxe2 {[%clk 0:01:38]}  Rb8 {[%clk 0:00:04]} 39. Nxf8 {[%clk 0:01:37]}  Rxf8 {[%clk 0:00:05]} 40. Kxh3 {[%clk 0:01:38]}  Kg5 {[%clk 0:00:05]} 41. f4+ {[%clk 0:01:37]}  Kg6 {[%clk 0:00:05]} 42. c5 {[%clk 0:01:37]}  Rd8 {[%clk 0:00:05]} 43. d6 {[%clk 0:01:38]}  Kf5 {[%clk 0:00:06]} 44. Re5+ {[%clk 0:01:38]}  Kf6 {[%clk 0:00:07]} 45. Kh4 {[%clk 0:01:38]}  b5 {[%clk 0:00:07]} 46. axb6 {[%clk 0:01:38]}  a5 {[%clk 0:00:08]} 47. bxa5 {[%clk 0:01:38]}  Rf8 {[%clk 0:00:08]} 48. d7 {[%clk 0:01:38]}  Kg7 {[%clk 0:00:08]} 49. c6 {[%clk 0:01:37]}  Rg8 {[%clk 0:00:08]} 50. Rg5+ {[%clk 0:01:37]}  Kh7 {[%clk 0:00:05]} 51. Rxg8 {[%clk 0:01:37]}  Kxg8 {[%clk 0:00:06]} 52. d8=Q+ {[%clk 0:01:37]}  Kg7 {[%clk 0:00:06]} 53. Qg5+ {[%clk 0:01:37]}  Kf7 {[%clk 0:00:06]} 54. c7 {[%clk 0:01:37]}  Ke6 {[%clk 0:00:06]} 55. c8=Q+ {[%clk 0:01:37]}  Kd6 {[%clk 0:00:06]} 56. Qe5# {[%clk 0:01:37]} 1-0


[Site "https://www.chess.com"]

[Event "Titled Tuesday Blitz December 20 Late 2022"]
[White "Rego, Pedro Filipe"]
[Black "Zheng, Richard"]
[WhiteFideId "1904310"]
[BlackFideId "2624893"]
[WhiteElo "2193"]
[BlackElo "2639"]
[Result "1-0"]
[Round "01"]
[TimeControl "180+1"]
[Date "2022.12.21"]
[WhiteClock "0:00:44"]
[BlackClock "0:00:23"]

1. e4 {[%clk 0:02:47]}  c6 {[%clk 0:03:00]} 2. d4 {[%clk 0:02:42]}  d5 {[%clk 0:03:01]} 3. e5 {[%clk 0:02:42]}  Bf5 {[%clk 0:03:00]} 4. h4 {[%clk 0:02:40]}  h5 {[%clk 0:02:59]} 5. Bd3 {[%clk 0:02:40]}  Bxd3 {[%clk 0:02:59]} 6. Qxd3 {[%clk 0:02:41]}  e6 {[%clk 0:03:00]} 7. Nf3 {[%clk 0:02:38]}  a6 {[%clk 0:02:58]} 8. O-O {[%clk 0:02:31]}  c5 {[%clk 0:02:58]} 9. c4 {[%clk 0:02:22]}  Ne7 {[%clk 0:02:31]} 10. Nc3 {[%clk 0:02:18]}  dxc4 {[%clk 0:02:16]} 11. Qxc4 {[%clk 0:02:16]}  b5 {[%clk 0:02:17]} 12. Qe2 {[%clk 0:02:07]}  cxd4 {[%clk 0:02:07]} 13. Rd1 {[%clk 0:02:06]}  Nbc6 {[%clk 0:02:07]} 14. Ne4 {[%clk 0:01:55]}  Nf5 {[%clk 0:02:00]} 15. Bg5 {[%clk 0:01:54]}  Be7 {[%clk 0:01:59]} 16. a4 {[%clk 0:01:48]}  bxa4 {[%clk 0:01:47]} 17. Rxa4 {[%clk 0:01:41]}  Bxg5 {[%clk 0:01:45]} 18. Nfxg5 {[%clk 0:01:37]}  Nxe5 {[%clk 0:01:26]} 19. Ng3 {[%clk 0:01:34]}  Nxg3 {[%clk 0:01:17]} 20. Qxe5 {[%clk 0:01:20]}  Nf5 {[%clk 0:01:14]} 21. Nxe6 {[%clk 0:01:18]}  fxe6 {[%clk 0:00:57]} 22. Qxe6+ {[%clk 0:01:12]}  Ne7 {[%clk 0:00:38]} 23. Raxd4 {[%clk 0:00:57]}  Qc8 {[%clk 0:00:28]} 24. Rd7 {[%clk 0:00:55]}  Qc5 {[%clk 0:00:23]} 25. Re1 {[%clk 0:00:44]} 1-0


[Site "https://www.chess.com"]

[Event "Titled Tuesday Blitz December 20 Late 2022"]
[White "Renjith, Sravan"]
[Black "Antonio, Jorge Carlos"]
[WhiteFideId "4306783"]
[BlackFideId "113190"]
[WhiteElo "2072"]
[BlackElo "2247"]
[Result "1-0"]
[Round "01"]
[TimeControl "180+1"]
[Date "2022.12.21"]
[WhiteClock "0:01:22"]
[BlackClock "0:00:54"]

1. Nf3 {[%clk 0:02:59]}  d5 {[%clk 0:02:57]} 2. d4 {[%clk 0:02:53]}  c6 {[%clk 0:02:55]} 3. g3 {[%clk 0:02:52]}  Nf6 {[%clk 0:02:50]} 4. Bg2 {[%clk 0:02:52]}  Bg4 {[%clk 0:02:39]} 5. Ne5 {[%clk 0:02:52]}  Bh5 {[%clk 0:02:22]} 6. O-O {[%clk 0:02:50]}  Nbd7 {[%clk 0:02:16]} 7. Nxd7 {[%clk 0:02:45]}  Qxd7 {[%clk 0:02:16]} 8. Bf4 {[%clk 0:02:44]}  e6 {[%clk 0:02:11]} 9. Nd2 {[%clk 0:02:43]}  Bd6 {[%clk 0:02:12]} 10. Bxd6 {[%clk 0:02:38]}  Qxd6 {[%clk 0:02:12]} 11. c3 {[%clk 0:02:38]}  O-O {[%clk 0:02:06]} 12. Re1 {[%clk 0:02:36]}  e5 {[%clk 0:02:07]} 13. dxe5 {[%clk 0:02:25]}  Qxe5 {[%clk 0:02:06]} 14. Qb3 {[%clk 0:02:26]}  Qc7 {[%clk 0:02:02]} 15. e4 {[%clk 0:02:24]}  Nxe4 {[%clk 0:01:58]} 16. Nxe4 {[%clk 0:02:25]}  dxe4 {[%clk 0:01:55]} 17. Rxe4 {[%clk 0:02:25]}  Bg6 {[%clk 0:01:52]} 18. Re2 {[%clk 0:02:24]}  Rfe8 {[%clk 0:01:51]} 19. Rae1 {[%clk 0:02:21]}  Rxe2 {[%clk 0:01:50]} 20. Rxe2 {[%clk 0:02:22]}  Rd8 {[%clk 0:01:50]} 21. Bf3 {[%clk 0:02:16]}  Bf5 {[%clk 0:01:46]} 22. c4 {[%clk 0:02:13]}  h6 {[%clk 0:01:42]} 23. h4 {[%clk 0:02:09]}  Rd3 {[%clk 0:01:37]} 24. Re8+ {[%clk 0:01:27]}  Kh7 {[%clk 0:01:30]} 25. Qc2 {[%clk 0:01:27]}  Rxf3 {[%clk 0:01:29]} 26. Qe2 {[%clk 0:01:26]}  Bg4 {[%clk 0:01:26]} 27. Qe4+ {[%clk 0:01:24]}  f5 {[%clk 0:01:10]} 28. Qe6 {[%clk 0:01:23]}  Qa5 {[%clk 0:01:00]} 29. Qg8+ {[%clk 0:01:20]}  Kg6 {[%clk 0:01:00]} 30. Re6+ {[%clk 0:01:20]}  Kh5 {[%clk 0:00:58]} 31. Qf7+ {[%clk 0:01:21]}  g6 {[%clk 0:00:54]} 32. Qxg6# {[%clk 0:01:22]} 1-0


[Site "https://www.chess.com"]

[Event "Titled Tuesday Blitz December 20 Late 2022"]
[White "Rosenberg, Evan S"]
[Black "Jaracz, Pawel"]
[WhiteFideId "2019299"]
[BlackFideId "1102222"]
[WhiteElo "2409"]
[BlackElo "2460"]
[Result "0-1"]
[Round "01"]
[TimeControl "180+1"]
[Date "2022.12.21"]
[WhiteClock "0:00:01"]
[BlackClock "0:00:40"]

1. d4 {[%clk 0:03:00]}  Nf6 {[%clk 0:02:57]} 2. Nf3 {[%clk 0:03:01]}  g6 {[%clk 0:02:56]} 3. Nc3 {[%clk 0:03:01]}  Bg7 {[%clk 0:02:55]} 4. e4 {[%clk 0:03:01]}  d6 {[%clk 0:02:55]} 5. Be2 {[%clk 0:03:01]}  O-O {[%clk 0:02:55]} 6. O-O {[%clk 0:03:02]}  a6 {[%clk 0:02:55]} 7. Re1 {[%clk 0:02:57]}  Nc6 {[%clk 0:02:55]} 8. d5 {[%clk 0:02:54]}  Na7 {[%clk 0:02:55]} 9. h3 {[%clk 0:02:52]}  c6 {[%clk 0:02:54]} 10. a4 {[%clk 0:02:51]}  b5 {[%clk 0:02:33]} 11. dxc6 {[%clk 0:02:43]}  b4 {[%clk 0:02:33]} 12. Nd5 {[%clk 0:02:43]}  Nxc6 {[%clk 0:02:32]} 13. Bc4 {[%clk 0:02:28]}  Bb7 {[%clk 0:02:20]} 14. Bg5 {[%clk 0:02:19]}  Nd7 {[%clk 0:02:06]} 15. Qc1 {[%clk 0:01:59]}  Rc8 {[%clk 0:01:59]} 16. Bh6 {[%clk 0:01:41]}  Na5 {[%clk 0:01:53]} 17. Bxg7 {[%clk 0:01:40]}  Kxg7 {[%clk 0:01:53]} 18. Bd3 {[%clk 0:01:29]}  Nb3 {[%clk 0:01:51]} 19. cxb3 {[%clk 0:01:20]}  Rxc1 {[%clk 0:01:50]} 20. Raxc1 {[%clk 0:01:21]}  Nc5 {[%clk 0:01:45]} 21. Bc4 {[%clk 0:01:17]}  a5 {[%clk 0:01:43]} 22. Rcd1 {[%clk 0:01:13]}  e6 {[%clk 0:01:36]} 23. Nf4 {[%clk 0:01:04]}  Qf6 {[%clk 0:01:33]} 24. Nd3 {[%clk 0:00:55]}  Nxe4 {[%clk 0:01:32]} 25. Re2 {[%clk 0:00:50]}  Rc8 {[%clk 0:01:22]} 26. Rde1 {[%clk 0:00:46]}  Nc5 {[%clk 0:01:16]} 27. Nxc5 {[%clk 0:00:45]}  Rxc5 {[%clk 0:01:15]} 28. Nd2 {[%clk 0:00:39]}  Qg5 {[%clk 0:01:05]} 29. g3 {[%clk 0:00:28]}  h5 {[%clk 0:00:57]} 30. Re3 {[%clk 0:00:25]}  h4 {[%clk 0:00:56]} 31. g4 {[%clk 0:00:08]}  Qf4 {[%clk 0:00:52]} 32. Bf1 {[%clk 0:00:05]}  Qd4 {[%clk 0:00:46]} 33. Nf3 {[%clk 0:00:04]}  Qxb2 {[%clk 0:00:45]} 34. Bg2 {[%clk 0:00:03]}  Bxf3 {[%clk 0:00:43]} 35. Bxf3 {[%clk 0:00:02]}  Rc1 {[%clk 0:00:43]} 36. Rxc1 {[%clk 0:00:02]}  Qxc1+ {[%clk 0:00:43]} 37. Kg2 {[%clk 0:00:02]}  d5 {[%clk 0:00:43]} 38. Re2 {[%clk 0:00:01]}  Qb1 {[%clk 0:00:40]} 39. Re3 {[%clk 0:00:01]}  Qb2 {[%clk 0:00:40]} 0-1


[Site "https://www.chess.com"]

[Event "Titled Tuesday Blitz December 20 Late 2022"]
[White "Rustemov, Alexander"]
[Black "Reprintsev, Alexander"]
[WhiteFideId "4119002"]
[BlackFideId "14100541"]
[WhiteElo "2872"]
[BlackElo "2230"]
[Result "1-0"]
[Round "01"]
[TimeControl "180+1"]
[Date "2022.12.20"]
[WhiteClock "0:01:00"]
[BlackClock "0:00:12"]

1. d4 {[%clk 0:03:00]}  d5 {[%clk 0:02:56]} 2. Bf4 {[%clk 0:03:01]}  Nf6 {[%clk 0:02:55]} 3. e3 {[%clk 0:03:01]}  c5 {[%clk 0:02:54]} 4. c3 {[%clk 0:03:00]}  Qb6 {[%clk 0:02:54]} 5. Qb3 {[%clk 0:02:56]}  c4 {[%clk 0:02:53]} 6. Qc2 {[%clk 0:02:56]}  g6 {[%clk 0:02:53]} 7. Nd2 {[%clk 0:02:52]}  Bf5 {[%clk 0:02:52]} 8. Qc1 {[%clk 0:02:52]}  Bg7 {[%clk 0:02:52]} 9. h3 {[%clk 0:02:52]}  h5 {[%clk 0:02:50]} 10. Ngf3 {[%clk 0:02:52]}  Nfd7 {[%clk 0:02:49]} 11. Be2 {[%clk 0:02:52]}  Nc6 {[%clk 0:02:48]} 12. O-O {[%clk 0:02:52]}  O-O {[%clk 0:02:45]} 13. Re1 {[%clk 0:02:52]}  Rae8 {[%clk 0:02:24]} 14. Bd1 {[%clk 0:02:43]}  e5 {[%clk 0:02:22]} 15. dxe5 {[%clk 0:02:43]}  Ndxe5 {[%clk 0:02:21]} 16. Nxe5 {[%clk 0:02:43]}  Bxe5 {[%clk 0:02:19]} 17. Bxe5 {[%clk 0:02:38]}  Nxe5 {[%clk 0:02:19]} 18. Bc2 {[%clk 0:02:38]}  Bxc2 {[%clk 0:02:18]} 19. Qxc2 {[%clk 0:02:38]}  Nd3 {[%clk 0:02:18]} 20. Reb1 {[%clk 0:02:37]}  f5 {[%clk 0:02:15]} 21. Nf3 {[%clk 0:02:36]}  f4 {[%clk 0:02:03]} 22. exf4 {[%clk 0:02:34]}  Rxf4 {[%clk 0:02:02]} 23. Rf1 {[%clk 0:02:28]}  Rxf3 {[%clk 0:01:50]} 24. gxf3 {[%clk 0:02:27]}  Qf6 {[%clk 0:01:51]} 25. f4 {[%clk 0:02:06]}  Qxf4 {[%clk 0:01:50]} 26. f3 {[%clk 0:02:04]}  Qg3+ {[%clk 0:01:33]} 27. Qg2 {[%clk 0:02:03]}  Qxg2+ {[%clk 0:01:33]} 28. Kxg2 {[%clk 0:02:03]}  Re2+ {[%clk 0:01:34]} 29. Kg3 {[%clk 0:02:03]}  Rxb2 {[%clk 0:01:23]} 30. Rfb1 {[%clk 0:01:58]}  Rc2 {[%clk 0:01:20]} 31. Rxb7 {[%clk 0:01:58]}  g5 {[%clk 0:01:20]} 32. h4 {[%clk 0:01:57]}  gxh4+ {[%clk 0:01:14]} 33. Kxh4 {[%clk 0:01:57]}  Ne5 {[%clk 0:01:09]} 34. f4 {[%clk 0:01:42]}  Nf7 {[%clk 0:00:58]} 35. Re1 {[%clk 0:01:34]}  Nd6 {[%clk 0:00:38]} 36. Rxa7 {[%clk 0:01:28]}  Ne4 {[%clk 0:00:34]} 37. Kxh5 {[%clk 0:01:16]}  Rxc3 {[%clk 0:00:22]} 38. Rb1 {[%clk 0:01:12]}  Rh3+ {[%clk 0:00:15]} 39. Kg6 {[%clk 0:01:08]}  Rg3+ {[%clk 0:00:15]} 40. Kf5 {[%clk 0:01:08]}  Nd6+ {[%clk 0:00:15]} 41. Ke6 {[%clk 0:01:05]}  Nf7 {[%clk 0:00:11]} 42. Rb8+ {[%clk 0:01:02]}  Kg7 {[%clk 0:00:12]} 43. Rxf7+ {[%clk 0:01:00]} 1-0


[Site "https://www.chess.com"]